[Event "*** Titled Tuesday Blitz"]
[Site "Chess.com"]
[Date "2020.04.14"]
[Round "6"]
[White "Sychev_Klementy"]
[Black "AustrianFalcon"]
[Result "0-1"]
[WhiteElo "2754"]
[BlackElo "2565"]
[TimeControl "180+1"]
[EndTime "11:03:57 PDT"]
[Termination "AustrianFalcon won by resignation"]

1. e4 {[%clk 0:02:38.4]} 1... g6 {[%clk 0:02:58.9]} 2. d4 {[%clk 0:02:38.1]}
2... Bg7 {[%clk 0:02:59.3]} 3. Nc3 {[%clk 0:02:38.9]} 3... d6 {[%clk 0:02:59.5]}
4. f4 {[%clk 0:02:39.4]} 4... Nf6 {[%clk 0:02:59.2]} 5. Nf3 {[%clk 0:02:39.9]}
5... O-O {[%clk 0:02:59.5]} 6. e5 {[%clk 0:02:40.4]} 6... dxe5 {[%clk
0:02:58.7]} 7. fxe5 {[%clk 0:02:41]} 7... Nd5 {[%clk 0:02:59.1]} 8. Bc4 {[%clk
0:02:41.3]} 8... Nxc3 {[%clk 0:02:59]} 9. bxc3 {[%clk 0:02:41.3]} 9... c5 {[%clk
0:02:59.6]} 10. O-O {[%clk 0:02:39.5]} 10... Bg4 {[%clk 0:02:59.4]} 11. h3
{[%clk 0:02:37.8]} 11... Bxf3 {[%clk 0:02:34.4]} 12. Rxf3 {[%clk 0:02:00.4]}
12... Nc6 {[%clk 0:02:27.9]} 13. Be3 {[%clk 0:01:53.4]} 13... Qa5 {[%clk
0:02:28]} 14. Qd3 {[%clk 0:01:05]} 14... Rad8 {[%clk 0:02:20]} 15. Rxf7 {[%clk
0:01:02.6]} 15... Rxf7 {[%clk 0:02:11]} 16. Bxf7+ {[%clk 0:01:02.4]} 16... Kxf7
{[%clk 0:02:07.8]} 17. Qc4+ {[%clk 0:01:02]} 17... Ke8 {[%clk 0:01:18.9]} 18.
Rf1 {[%clk 0:01:00]} 18... Kd7 {[%clk 0:01:06.3]} 19. Rf7 {[%clk 0:00:57.3]}
19... Bf8 {[%clk 0:00:53.8]} 20. Bf4 {[%clk 0:00:47.2]} 20... cxd4 {[%clk
0:00:42.5]} 21. cxd4 {[%clk 0:00:46]} 21... Kc8 {[%clk 0:00:39.9]} 22. d5 {[%clk
0:00:38.2]} 22... Qxd5 {[%clk 0:00:33.7]} 23. Qxd5 {[%clk 0:00:37.9]} 23... Rxd5
{[%clk 0:00:34.1]} 24. Rxf8+ {[%clk 0:00:38.3]} 24... Kd7 {[%clk 0:00:34.3]} 25.
Rf7 {[%clk 0:00:35.2]} 25... h5 {[%clk 0:00:32.4]} 26. Rg7 {[%clk 0:00:34.5]}
26... Nxe5 {[%clk 0:00:31.7]} 27. Kh2 {[%clk 0:00:27.8]} 27... a5 {[%clk
0:00:16.6]} 28. Kg3 {[%clk 0:00:26.2]} 28... b5 {[%clk 0:00:15.4]} 29. Bxe5
{[%clk 0:00:16.7]} 29... Rxe5 {[%clk 0:00:15.6]} 30. Rxg6 {[%clk 0:00:17.2]}
30... Rc5 {[%clk 0:00:15.8]} 31. Ra6 {[%clk 0:00:16.5]} 31... a4 {[%clk
0:00:15.1]} 32. Rb6 {[%clk 0:00:15.6]} 32... Kc7 {[%clk 0:00:14.5]} 33. Re6
{[%clk 0:00:14.8]} 33... Rxc2 {[%clk 0:00:14.7]} 34. Rxe7+ {[%clk 0:00:14.9]}
34... Kb6 {[%clk 0:00:15.3]} 35. a3 {[%clk 0:00:09.6]} 35... Rc3+ {[%clk
0:00:14.6]} 36. Kh4 {[%clk 0:00:09.8]} 36... Rxa3 {[%clk 0:00:15.2]} 37. Kxh5
{[%clk 0:00:10.4]} 37... Rc3 {[%clk 0:00:15.7]} 38. g4 {[%clk 0:00:10.2]} 38...
a3 {[%clk 0:00:15.7]} 39. g5 {[%clk 0:00:09.4]} 39... a2 {[%clk 0:00:13.8]} 40.
Re1 {[%clk 0:00:08.3]} 40... b4 {[%clk 0:00:14.1]} 41. g6 {[%clk 0:00:08.8]}
41... b3 {[%clk 0:00:14.4]} 42. g7 {[%clk 0:00:06.9]} 42... Rg3 {[%clk
0:00:14.2]} 43. Kh6 {[%clk 0:00:06.2]} 43... b2 {[%clk 0:00:14.5]} 0-1

[Event "*** Titled Tuesday Blitz"]
[Site "Chess.com"]
[Date "2020.04.14"]
[Round "6"]
[White "Donseng"]
[Black "BaMBoMaTTo"]
[Result "0-1"]
[WhiteElo "2524"]
[BlackElo "2710"]
[TimeControl "180+1"]
[EndTime "11:03:57 PDT"]
[Termination "BaMBoMaTTo won by resignation"]

1. e4 {[%clk 0:03:00.9]} 1... c5 {[%clk 0:03:00]} 2. Nf3 {[%clk 0:03:00.8]} 2...
d6 {[%clk 0:03:00.3]} 3. d4 {[%clk 0:03:00.6]} 3... cxd4 {[%clk 0:03:01.2]} 4.
Nxd4 {[%clk 0:03:01.5]} 4... Nf6 {[%clk 0:03:01.7]} 5. Nc3 {[%clk 0:03:01.8]}
5... a6 {[%clk 0:03:02.2]} 6. Be3 {[%clk 0:03:01.6]} 6... e5 {[%clk 0:03:01.2]}
7. Nb3 {[%clk 0:03:00.3]} 7... Be6 {[%clk 0:03:01.2]} 8. h3 {[%clk 0:02:57.2]}
8... Be7 {[%clk 0:02:52.6]} 9. Qf3 {[%clk 0:02:56.8]} 9... O-O {[%clk
0:02:50.5]} 10. O-O-O {[%clk 0:02:56.3]} 10... b5 {[%clk 0:02:50.6]} 11. g4
{[%clk 0:02:54.3]} 11... b4 {[%clk 0:02:50.8]} 12. Nd5 {[%clk 0:02:54]} 12...
Nxd5 {[%clk 0:02:50.6]} 13. exd5 {[%clk 0:02:53.9]} 13... Bc8 {[%clk 0:02:51]}
14. Bd3 {[%clk 0:02:37.9]} 14... a5 {[%clk 0:02:51.1]} 15. Kb1 {[%clk
0:02:36.7]} 15... Ba6 {[%clk 0:02:46.9]} 16. Be4 {[%clk 0:02:32.2]} 16... Nd7
{[%clk 0:02:42.5]} 17. h4 {[%clk 0:02:24.6]} 17... a4 {[%clk 0:02:42.7]} 18. Nc1
{[%clk 0:02:23.7]} 18... Nf6 {[%clk 0:02:41.8]} 19. g5 {[%clk 0:02:19.9]} 19...
Nxe4 {[%clk 0:02:41.3]} 20. Qxe4 {[%clk 0:02:20.8]} 20... b3 {[%clk 0:01:58.2]}
21. cxb3 {[%clk 0:02:17.2]} 21... axb3 {[%clk 0:01:59.1]} 22. Nxb3 {[%clk
0:02:17.1]} 22... Qd7 {[%clk 0:01:36.6]} 23. h5 {[%clk 0:02:09.7]} 23... Be2
{[%clk 0:01:36.4]} 24. Rc1 {[%clk 0:00:58.5]} 24... Ra4 {[%clk 0:01:36.3]} 25.
Qc2 {[%clk 0:00:47.4]} 25... Bf3 {[%clk 0:01:31.2]} 26. Qc6 {[%clk 0:00:42.2]}
26... Qf5+ {[%clk 0:01:08.2]} 27. Ka1 {[%clk 0:00:41.7]} 27... Rfa8 {[%clk
0:01:08.2]} 28. a3 {[%clk 0:00:39.1]} 28... Bxh1 {[%clk 0:01:02.3]} 29. Rxh1
{[%clk 0:00:38.1]} 29... Qd3 {[%clk 0:00:55.4]} 30. Ka2 {[%clk 0:00:21]} 30...
Rb8 {[%clk 0:00:45.3]} 31. Qxa4 {[%clk 0:00:18.2]} 31... Qxd5 {[%clk 0:00:45.9]}
32. Rc1 {[%clk 0:00:16.8]} 32... Qf3 {[%clk 0:00:38.9]} 33. Qc4 {[%clk 0:00:16]}
33... Qxh5 {[%clk 0:00:36.8]} 34. Na5 {[%clk 0:00:13.7]} 34... Bxg5 {[%clk
0:00:35.9]} 35. Nc6 {[%clk 0:00:12.6]} 35... Rf8 {[%clk 0:00:31]} 36. Bxg5
{[%clk 0:00:11]} 36... Qxg5 {[%clk 0:00:31.9]} 37. a4 {[%clk 0:00:11.4]} 37...
d5 {[%clk 0:00:13.2]} 38. f4 {[%clk 0:00:09.7]} 38... exf4 {[%clk 0:00:12.8]}
39. Qxd5 {[%clk 0:00:08.9]} 39... Qxd5+ {[%clk 0:00:12.9]} 0-1

[Event "*** Titled Tuesday Blitz"]
[Site "Chess.com"]
[Date "2020.04.14"]
[Round "6"]
[White "giantslayer83"]
[Black "Hanging_pointer"]
[Result "1-0"]
[WhiteElo "2727"]
[BlackElo "2555"]
[TimeControl "180+1"]
[EndTime "11:03:58 PDT"]
[Termination "giantslayer83 won by resignation"]

1. d4 {[%clk 0:03:00.9]} 1... d5 {[%clk 0:02:59.5]} 2. c4 {[%clk 0:03:00.1]}
2... c6 {[%clk 0:02:59.9]} 3. Nf3 {[%clk 0:02:59.1]} 3... Nf6 {[%clk 0:02:59.5]}
4. e3 {[%clk 0:02:59.1]} 4... Bf5 {[%clk 0:02:58.4]} 5. Nc3 {[%clk 0:02:58.8]}
5... e6 {[%clk 0:02:58.4]} 6. Nh4 {[%clk 0:02:57.8]} 6... Be4 {[%clk 0:02:55.2]}
7. f3 {[%clk 0:02:57.5]} 7... Bg6 {[%clk 0:02:54.4]} 8. Qb3 {[%clk 0:02:57.6]}
8... Qb6 {[%clk 0:02:50.8]} 9. Bd2 {[%clk 0:02:50]} 9... Qxb3 {[%clk 0:02:44.9]}
10. axb3 {[%clk 0:02:49.5]} 10... Bc2 {[%clk 0:02:43.6]} 11. c5 {[%clk 0:02:45]}
11... Bxb3 {[%clk 0:02:38.3]} 12. g3 {[%clk 0:02:38.5]} 12... Bc2 {[%clk
0:02:34]} 13. b4 {[%clk 0:02:37.8]} 13... Be7 {[%clk 0:02:28.1]} 14. Ra2 {[%clk
0:02:37.3]} 14... Bg6 {[%clk 0:02:21.7]} 15. Nxg6 {[%clk 0:02:27.5]} 15... hxg6
{[%clk 0:02:22.6]} 16. Bd3 {[%clk 0:02:27.9]} 16... Nbd7 {[%clk 0:02:18.4]} 17.
f4 {[%clk 0:02:27.4]} 17... O-O {[%clk 0:02:13.9]} 18. b5 {[%clk 0:02:24.1]}
18... cxb5 {[%clk 0:02:08.9]} 19. Bxb5 {[%clk 0:02:20.9]} 19... Rfc8 {[%clk
0:02:06.6]} 20. O-O {[%clk 0:02:20.3]} 20... a6 {[%clk 0:02:00.6]} 21. Ba4
{[%clk 0:02:06.6]} 21... b5 {[%clk 0:01:50.9]} 22. Bc2 {[%clk 0:02:03.8]} 22...
Rcb8 {[%clk 0:01:38.4]} 23. Bd3 {[%clk 0:01:54.4]} 23... Bxc5 {[%clk 0:01:30.4]}
24. dxc5 {[%clk 0:01:53.2]} 24... Nxc5 {[%clk 0:01:31.3]} 25. Be2 {[%clk
0:01:52.5]} 25... b4 {[%clk 0:01:29.2]} 26. Na4 {[%clk 0:01:52]} 26... b3 {[%clk
0:01:26.2]} 27. Ra3 {[%clk 0:01:52.4]} 27... Nxa4 {[%clk 0:01:23.9]} 28. Rxa4
{[%clk 0:01:52.4]} 28... Ne4 {[%clk 0:01:22.5]} 29. Ba5 {[%clk 0:01:47.4]} 29...
b2 {[%clk 0:01:19.9]} 30. Rb1 {[%clk 0:01:35.2]} 30... Rb3 {[%clk 0:01:15.9]}
31. Rb4 {[%clk 0:01:35.4]} 31... Rb8 {[%clk 0:00:53.9]} 32. Rxb8+ {[%clk
0:01:29.2]} 32... Rxb8 {[%clk 0:00:54.8]} 33. Be1 {[%clk 0:01:24]} 33... Rb3
{[%clk 0:00:46.2]} 34. Kf1 {[%clk 0:01:15.9]} 34... Rxe3 {[%clk 0:00:45.6]} 35.
Rxb2 {[%clk 0:01:15.7]} 35... Ra3 {[%clk 0:00:42.5]} 36. Rb8+ {[%clk 0:01:14.6]}
36... Kh7 {[%clk 0:00:42.2]} 37. Ra8 {[%clk 0:01:14.6]} 37... Ra1 {[%clk
0:00:29.2]} 38. Bd3 {[%clk 0:00:49.1]} 38... Nc5 {[%clk 0:00:27]} 39. Be2 {[%clk
0:00:32.1]} 39... Ne4 {[%clk 0:00:26.7]} 40. Bxa6 {[%clk 0:00:16.4]} 40... Nc5
{[%clk 0:00:20.6]} 41. Bb7 {[%clk 0:00:16.7]} 41... Rb1 {[%clk 0:00:11.9]} 42.
Ba6 {[%clk 0:00:16.7]} 42... Nxa6 {[%clk 0:00:09.3]} 43. Rxa6 {[%clk 0:00:16.2]}
43... Rb2 {[%clk 0:00:09.8]} 44. h4 {[%clk 0:00:15.2]} 44... Rb3 {[%clk
0:00:09.3]} 45. Ra7 {[%clk 0:00:14]} 45... Rxg3 {[%clk 0:00:07.1]} 1-0

[Event "*** Titled Tuesday Blitz"]
[Site "Chess.com"]
[Date "2020.04.14"]
[Round "6"]
[White "rynos0411"]
[Black "TheoSlade"]
[Result "0-1"]
[WhiteElo "2397"]
[BlackElo "2283"]
[TimeControl "180+1"]
[EndTime "11:03:58 PDT"]
[Termination "TheoSlade won by resignation"]

1. e4 {[%clk 0:03:00.9]} 1... e5 {[%clk 0:03:00.1]} 2. Nf3 {[%clk 0:03:00.3]}
2... Nc6 {[%clk 0:03:00.5]} 3. Bb5 {[%clk 0:03:00.8]} 3... Nf6 {[%clk
0:03:00.5]} 4. O-O {[%clk 0:03:01]} 4... Nxe4 {[%clk 0:03:00.8]} 5. d4 {[%clk
0:03:01]} 5... Nd6 {[%clk 0:03:01.1]} 6. Bxc6 {[%clk 0:03:01.4]} 6... dxc6
{[%clk 0:03:02]} 7. dxe5 {[%clk 0:03:02.3]} 7... Nf5 {[%clk 0:03:02.3]} 8. Qxd8+
{[%clk 0:03:03.2]} 8... Kxd8 {[%clk 0:03:03.1]} 9. Nc3 {[%clk 0:03:02]} 9... Be7
{[%clk 0:03:03.3]} 10. h3 {[%clk 0:03:01.4]} 10... Nh4 {[%clk 0:03:00.7]} 11.
Rd1+ {[%clk 0:02:59.4]} 11... Ke8 {[%clk 0:02:58.4]} 12. Ng5 {[%clk 0:02:37.5]}
12... Ng6 {[%clk 0:02:41.6]} 13. Re1 {[%clk 0:02:14.6]} 13... Bf5 {[%clk
0:02:37]} 14. Re2 {[%clk 0:01:47.9]} 14... h6 {[%clk 0:02:35.9]} 15. Nf3 {[%clk
0:01:41.9]} 15... Rd8 {[%clk 0:02:17.4]} 16. g4 {[%clk 0:01:34]} 16... Be6
{[%clk 0:02:11.3]} 17. Kg2 {[%clk 0:01:10.1]} 17... h5 {[%clk 0:02:04.2]} 18. g5
{[%clk 0:01:08.3]} 18... c5 {[%clk 0:01:39.5]} 19. Be3 {[%clk 0:01:02.8]} 19...
Kd7 {[%clk 0:01:38.3]} 20. b3 {[%clk 0:00:37]} 20... Kc6 {[%clk 0:01:38.1]} 21.
Rae1 {[%clk 0:00:31.2]} 21... b6 {[%clk 0:01:34.2]} 22. Bc1 {[%clk 0:00:25.3]}
22... Kb7 {[%clk 0:01:19.3]} 23. Ne4 {[%clk 0:00:24.7]} 23... Rd5 {[%clk
0:01:15.4]} 24. c4 {[%clk 0:00:24]} 24... Rd3 {[%clk 0:01:12.9]} 25. Rd2 {[%clk
0:00:09.7]} 25... Rhd8 {[%clk 0:01:09.9]} 26. h4 {[%clk 0:00:05.2]} 26... Rxd2
{[%clk 0:01:02.5]} 27. Bxd2 {[%clk 0:00:05.4]} 27... Bg4 {[%clk 0:00:56.5]} 28.
Bc3 {[%clk 0:00:02.2]} 28... Rd3 {[%clk 0:00:50.8]} 29. Re3 {[%clk 0:00:02.4]}
29... Rxe3 {[%clk 0:00:47.8]} 30. fxe3 {[%clk 0:00:03.3]} 30... Bxf3+ {[%clk
0:00:47.1]} 31. Kxf3 {[%clk 0:00:04.2]} 31... Nxh4+ {[%clk 0:00:47.8]} 32. Kf4
{[%clk 0:00:03.3]} 32... Ng6+ {[%clk 0:00:42.7]} 33. Kg3 {[%clk 0:00:02.5]}
33... Nf8 {[%clk 0:00:38.3]} 34. Kf4 {[%clk 0:00:02.4]} 34... Ne6+ {[%clk
0:00:38.1]} 35. Kg3 {[%clk 0:00:01.7]} 35... Nxg5 {[%clk 0:00:36.3]} 36. Nxg5
{[%clk 0:00:02.1]} 36... Bxg5 {[%clk 0:00:37.2]} 37. e4 {[%clk 0:00:02.6]} 37...
g6 {[%clk 0:00:34.5]} 38. Kf3 {[%clk 0:00:02.1]} 38... Kc6 {[%clk 0:00:34.7]}
39. Be1 {[%clk 0:00:02.1]} 39... Kd7 {[%clk 0:00:34.5]} 40. Bg3 {[%clk
0:00:01.8]} 40... Ke6 {[%clk 0:00:34.7]} 41. Ke2 {[%clk 0:00:01.6]} 41... Bh6
{[%clk 0:00:34.7]} 42. Kf3 {[%clk 0:00:02]} 42... Bg7 {[%clk 0:00:35]} 43. Bf2
{[%clk 0:00:02]} 43... Bxe5 {[%clk 0:00:35.1]} 44. Be1 {[%clk 0:00:02.9]} 44...
Bd6 {[%clk 0:00:33]} 45. Ke3 {[%clk 0:00:02.7]} 45... g5 {[%clk 0:00:32]} 46.
Kf3 {[%clk 0:00:03]} 46... Bf4 {[%clk 0:00:29.3]} 47. Bf2 {[%clk 0:00:02.5]}
47... Ke5 {[%clk 0:00:28.4]} 48. Be1 {[%clk 0:00:02.9]} 48... g4+ {[%clk
0:00:27.8]} 49. Ke2 {[%clk 0:00:03.5]} 49... Kxe4 {[%clk 0:00:28.7]} 50. Bh4
{[%clk 0:00:03.4]} 50... f5 {[%clk 0:00:27.4]} 51. Bd8 {[%clk 0:00:02.9]} 51...
g3 {[%clk 0:00:26.1]} 52. Kf1 {[%clk 0:00:02.8]} 52... Kf3 {[%clk 0:00:25.3]}
0-1

[Event "*** Titled Tuesday Blitz"]
[Site "Chess.com"]
[Date "2020.04.14"]
[Round "6"]
[White "moro182"]
[Black "fugadelafuga"]
[Result "1-0"]
[WhiteElo "2683"]
[BlackElo "2390"]
[TimeControl "180+1"]
[EndTime "11:04:00 PDT"]
[Termination "moro182 won on time"]

1. d4 {[%clk 0:03:00.9]} 1... Nf6 {[%clk 0:02:58.9]} 2. c4 {[%clk 0:02:59.3]}
2... c5 {[%clk 0:02:59.1]} 3. Nf3 {[%clk 0:02:58.1]} 3... cxd4 {[%clk
0:02:58.3]} 4. Nxd4 {[%clk 0:02:59]} 4... Nc6 {[%clk 0:02:58.6]} 5. Nc3 {[%clk
0:02:59]} 5... g6 {[%clk 0:02:58.9]} 6. e4 {[%clk 0:02:58.5]} 6... d6 {[%clk
0:02:57.5]} 7. Be2 {[%clk 0:02:57.2]} 7... Nxd4 {[%clk 0:02:54.5]} 8. Qxd4
{[%clk 0:02:58.1]} 8... Bg7 {[%clk 0:02:54.9]} 9. Be3 {[%clk 0:02:55.1]} 9...
O-O {[%clk 0:02:54.9]} 10. Qd1 {[%clk 0:02:54.9]} 10... a5 {[%clk 0:02:53.3]}
11. O-O {[%clk 0:02:53.3]} 11... a4 {[%clk 0:02:49.2]} 12. Rc1 {[%clk
0:02:25.2]} 12... Qa5 {[%clk 0:02:42.7]} 13. Bd2 {[%clk 0:02:13.6]} 13... Be6
{[%clk 0:01:53.8]} 14. Nd5 {[%clk 0:01:35.2]} 14... Qd8 {[%clk 0:01:38.2]} 15.
Qc2 {[%clk 0:01:35.2]} 15... Nd7 {[%clk 0:01:31.6]} 16. Be3 {[%clk 0:01:27.3]}
16... Nc5 {[%clk 0:01:14.2]} 17. f4 {[%clk 0:01:13.3]} 17... Bxd5 {[%clk
0:01:02.7]} 18. exd5 {[%clk 0:01:14.2]} 18... b6 {[%clk 0:00:57.8]} 19. f5
{[%clk 0:01:11.7]} 19... Qc7 {[%clk 0:00:54.3]} 20. h4 {[%clk 0:01:07.1]} 20...
Nd7 {[%clk 0:00:50.5]} 21. h5 {[%clk 0:00:50.3]} 21... Ne5 {[%clk 0:00:49.6]}
22. Qe4 {[%clk 0:00:46.7]} 22... Rab8 {[%clk 0:00:38]} 23. hxg6 {[%clk
0:00:46.2]} 23... fxg6 {[%clk 0:00:37.6]} 24. fxg6 {[%clk 0:00:45.8]} 24... hxg6
{[%clk 0:00:38.3]} 25. Bg4 {[%clk 0:00:43.9]} 25... Nxg4 {[%clk 0:00:28]} 26.
Qxg4 {[%clk 0:00:44.2]} 26... Rxf1+ {[%clk 0:00:21.2]} 27. Rxf1 {[%clk
0:00:45.1]} 27... Rf8 {[%clk 0:00:17.6]} 28. Qe6+ {[%clk 0:00:38.7]} 28... Kh7
{[%clk 0:00:16.7]} 29. Rxf8 {[%clk 0:00:38.7]} 29... Bxf8 {[%clk 0:00:17.6]} 30.
Qf7+ {[%clk 0:00:39]} 30... Bg7 {[%clk 0:00:17.7]} 31. Bd4 {[%clk 0:00:39.4]}
31... Kh6 {[%clk 0:00:09.9]} 32. Bxg7+ {[%clk 0:00:29.6]} 32... Kg5 {[%clk
0:00:07.7]} 33. Bd4 {[%clk 0:00:21.9]} 33... Qxc4 {[%clk 0:00:07.1]} 34. Qxe7+
{[%clk 0:00:22.2]} 34... Kh6 {[%clk 0:00:06.8]} 35. Qe3+ {[%clk 0:00:21.7]}
35... Kh7 {[%clk 0:00:06.8]} 36. Qh3+ {[%clk 0:00:19.3]} 36... Kg8 {[%clk
0:00:05.5]} 37. Qe6+ {[%clk 0:00:19.1]} 37... Kh7 {[%clk 0:00:05.8]} 38. Qf7+
{[%clk 0:00:16.6]} 38... Kh6 {[%clk 0:00:05.9]} 39. Qf4+ {[%clk 0:00:16]} 39...
Kh7 {[%clk 0:00:05.9]} 40. a3 {[%clk 0:00:14.3]} 40... Qc2 {[%clk 0:00:01.8]}
41. Qh2+ {[%clk 0:00:12.8]} 41... Kg8 {[%clk 0:00:02]} 42. Qh8+ {[%clk
0:00:13.3]} 42... Kf7 {[%clk 0:00:02.3]} 43. Qf6+ {[%clk 0:00:13.8]} 43... Ke8
{[%clk 0:00:02.6]} 44. Qe6+ {[%clk 0:00:13.8]} 44... Kd8 {[%clk 0:00:02.9]} 45.
Bxb6+ {[%clk 0:00:14]} 1-0

[Event "*** Titled Tuesday Blitz"]
[Site "Chess.com"]
[Date "2020.04.14"]
[Round "6"]
[White "TheFireChess"]
[Black "Colombiano07"]
[Result "0-1"]
[WhiteElo "2447"]
[BlackElo "2312"]
[TimeControl "180+1"]
[EndTime "11:04:00 PDT"]
[Termination "Colombiano07 won on time"]

1. e4 {[%clk 0:03:00.9]} 1... e6 {[%clk 0:02:59.7]} 2. Nc3 {[%clk 0:02:59]} 2...
d5 {[%clk 0:03:00.3]} 3. d3 {[%clk 0:02:59.9]} 3... Nc6 {[%clk 0:02:54]} 4. f4
{[%clk 0:02:59.2]} 4... Bb4 {[%clk 0:02:52.6]} 5. Bd2 {[%clk 0:02:58.5]} 5...
Nf6 {[%clk 0:02:52.3]} 6. e5 {[%clk 0:02:58.1]} 6... Nd7 {[%clk 0:02:52.6]} 7.
a3 {[%clk 0:02:58.4]} 7... Bxc3 {[%clk 0:02:49.5]} 8. bxc3 {[%clk 0:02:58.7]}
8... O-O {[%clk 0:02:40.6]} 9. Nf3 {[%clk 0:02:59]} 9... f6 {[%clk 0:02:40.3]}
10. exf6 {[%clk 0:02:48.3]} 10... Qxf6 {[%clk 0:02:39.8]} 11. Be2 {[%clk
0:02:33.3]} 11... e5 {[%clk 0:02:39.4]} 12. fxe5 {[%clk 0:02:31.3]} 12... Ndxe5
{[%clk 0:02:40.3]} 13. O-O {[%clk 0:02:31.4]} 13... Qd6 {[%clk 0:02:21.4]} 14.
Nxe5 {[%clk 0:02:27.2]} 14... Rxf1+ {[%clk 0:02:18.3]} 15. Qxf1 {[%clk
0:02:25.5]} 15... Nxe5 {[%clk 0:02:15.5]} 16. d4 {[%clk 0:01:43.7]} 16... Ng6
{[%clk 0:02:05.5]} 17. Bd3 {[%clk 0:01:38.7]} 17... Bd7 {[%clk 0:01:58.2]} 18.
a4 {[%clk 0:00:57.5]} 18... Rf8 {[%clk 0:01:41.3]} 19. Qe2 {[%clk 0:00:55.5]}
19... Nf4 {[%clk 0:01:40]} 20. Bxf4 {[%clk 0:00:55]} 20... Qxf4 {[%clk
0:01:40.9]} 21. a5 {[%clk 0:00:52.1]} 21... Bg4 {[%clk 0:01:37.1]} 22. Qe1
{[%clk 0:00:49.1]} 22... a6 {[%clk 0:01:34.8]} 23. Rb1 {[%clk 0:00:47.1]} 23...
Bc8 {[%clk 0:01:26.4]} 24. Qe2 {[%clk 0:00:37.6]} 24... g6 {[%clk 0:01:17.9]}
25. Re1 {[%clk 0:00:28.3]} 25... b5 {[%clk 0:01:04.3]} 26. Rf1 {[%clk
0:00:11.3]} 26... Qxf1+ {[%clk 0:01:02.1]} 27. Qxf1 {[%clk 0:00:12.2]} 27...
Rxf1+ {[%clk 0:01:02.4]} 28. Kxf1 {[%clk 0:00:13.1]} 28... Kf7 {[%clk
0:01:00.9]} 29. Kf2 {[%clk 0:00:13.7]} 29... Ke6 {[%clk 0:00:57.9]} 30. Ke3
{[%clk 0:00:14.1]} 30... Kd6 {[%clk 0:00:58.6]} 31. Kf4 {[%clk 0:00:11.1]} 31...
c5 {[%clk 0:00:44.3]} 32. g4 {[%clk 0:00:11.4]} 32... c4 {[%clk 0:00:44.2]} 33.
Be2 {[%clk 0:00:10.5]} 33... h6 {[%clk 0:00:42.8]} 34. h4 {[%clk 0:00:09.2]}
34... Ke6 {[%clk 0:00:40]} 35. Bf3 {[%clk 0:00:09.5]} 35... Bb7 {[%clk
0:00:39.3]} 36. Bg2 {[%clk 0:00:05.8]} 36... Kf6 {[%clk 0:00:39.6]} 37. g5+
{[%clk 0:00:06.1]} 37... hxg5+ {[%clk 0:00:39.9]} 38. hxg5+ {[%clk 0:00:07]}
38... Ke6 {[%clk 0:00:37.2]} 39. Bh3+ {[%clk 0:00:07.5]} 39... Kd6 {[%clk
0:00:37.6]} 40. Bg4 {[%clk 0:00:08]} 40... Bc6 {[%clk 0:00:37.3]} 41. Bh3 {[%clk
0:00:06.7]} 41... Be8 {[%clk 0:00:34.2]} 42. Bg4 {[%clk 0:00:07]} 42... Bf7
{[%clk 0:00:30.2]} 43. Bc8 {[%clk 0:00:07.2]} 43... Be6 {[%clk 0:00:17.3]} 44.
Bxa6 {[%clk 0:00:05.3]} 44... Kc6 {[%clk 0:00:17.6]} 45. Ke5 {[%clk 0:00:05.8]}
45... Bf5 {[%clk 0:00:16.6]} 0-1

[Event "*** Titled Tuesday Blitz"]
[Site "Chess.com"]
[Date "2020.04.14"]
[Round "6"]
[White "jaskol95"]
[Black "politeplayer"]
[Result "1-0"]
[WhiteElo "2404"]
[BlackElo "2194"]
[TimeControl "180+1"]
[EndTime "11:04:00 PDT"]
[Termination "jaskol95 won on time"]

1. d4 {[%clk 0:03:00.9]} 1... e6 {[%clk 0:02:59.9]} 2. Bf4 {[%clk 0:02:59.6]}
2... f5 {[%clk 0:02:57.9]} 3. Nc3 {[%clk 0:02:59]} 3... Nf6 {[%clk 0:02:57.5]}
4. e4 {[%clk 0:02:58.3]} 4... Bb4 {[%clk 0:02:56.1]} 5. e5 {[%clk 0:02:57.5]}
5... Ne4 {[%clk 0:02:50.4]} 6. Qf3 {[%clk 0:02:43]} 6... O-O {[%clk 0:02:36.8]}
7. h4 {[%clk 0:02:37.8]} 7... Nc6 {[%clk 0:02:20.6]} 8. Ne2 {[%clk 0:02:34.1]}
8... b6 {[%clk 0:02:16.6]} 9. O-O-O {[%clk 0:02:24.8]} 9... Bb7 {[%clk
0:02:05.2]} 10. Nxe4 {[%clk 0:02:15.4]} 10... fxe4 {[%clk 0:02:00.4]} 11. Qxe4
{[%clk 0:02:09.9]} 11... Ne7 {[%clk 0:01:28.6]} 12. Qxb7 {[%clk 0:02:04.1]}
12... c6 {[%clk 0:01:27.5]} 13. a3 {[%clk 0:01:49.5]} 13... Ba5 {[%clk
0:01:16.2]} 14. b4 {[%clk 0:01:47]} 14... Nd5 {[%clk 0:01:11.8]} 15. Bd2 {[%clk
0:01:44.6]} 15... Qe7 {[%clk 0:01:00]} 16. c3 {[%clk 0:01:32.1]} 16... b5 {[%clk
0:00:49.1]} 17. Bg5 {[%clk 0:00:52.3]} 17... Qf7 {[%clk 0:00:41.9]} 18. bxa5
{[%clk 0:00:50.4]} 18... Rfb8 {[%clk 0:00:38.5]} 19. Qxa8 {[%clk 0:00:43.9]}
19... Rxa8 {[%clk 0:00:37.9]} 20. f3 {[%clk 0:00:43.4]} 20... Rb8 {[%clk
0:00:31.3]} 21. Kb2 {[%clk 0:00:39.2]} 21... Qf8 {[%clk 0:00:28.2]} 22. Bd2
{[%clk 0:00:32.9]} 22... c5 {[%clk 0:00:27.8]} 23. Nc1 {[%clk 0:00:30.3]} 23...
b4 {[%clk 0:00:25.9]} 24. axb4 {[%clk 0:00:30]} 24... cxb4 {[%clk 0:00:25.5]}
25. c4 {[%clk 0:00:30.5]} 25... Nc3 {[%clk 0:00:24.6]} 26. Re1 {[%clk
0:00:27.8]} 26... Qd8 {[%clk 0:00:17.4]} 27. Nb3 {[%clk 0:00:25.4]} 27... Na4+
{[%clk 0:00:17.1]} 28. Kc2 {[%clk 0:00:24]} 28... Nc3 {[%clk 0:00:14.4]} 29. Bd3
{[%clk 0:00:23.5]} 29... Qc7 {[%clk 0:00:13.6]} 30. h5 {[%clk 0:00:17.7]} 30...
Qc6 {[%clk 0:00:12.9]} 31. h6 {[%clk 0:00:15.8]} 31... g6 {[%clk 0:00:12.1]} 32.
Nc5 {[%clk 0:00:08.6]} 32... Na4 {[%clk 0:00:08.9]} 33. Nb3 {[%clk 0:00:06.9]}
33... Nc3 {[%clk 0:00:05.7]} 34. Ra1 {[%clk 0:00:06.9]} 34... Nd5 {[%clk
0:00:04.3]} 35. Be4 {[%clk 0:00:05.5]} 35... Qc7 {[%clk 0:00:03.5]} 36. Kd3
{[%clk 0:00:05.4]} 36... Ne7 {[%clk 0:00:02.4]} 37. Nc5 {[%clk 0:00:05.6]} 37...
d6 {[%clk 0:00:02.1]} 38. Nxe6 {[%clk 0:00:05.3]} 38... Qc8 {[%clk 0:00:02]} 39.
exd6 {[%clk 0:00:05.4]} 1-0